[Event "*** SCC Grand Prix: Titled Tuesday Blitz"]
[Site "Chess.com"]
[Date "2020.06.23"]
[Round "10"]
[White "ElusiveCat"]
[Black "Grineva_Marianna"]
[Result "1-0"]
[WhiteElo "2326"]
[BlackElo "2188"]
[TimeControl "180+1"]
[EndTime "11:59:33 PDT"]
[Termination "ElusiveCat won by checkmate"]

1. d4 {[%clk 0:03:00.9]} 1... f5 {[%clk 0:02:58.6]} 2. c4 {[%clk 0:02:59.2]}
2... d6 {[%clk 0:02:57.5]} 3. g3 {[%clk 0:02:58.1]} 3... Nf6 {[%clk 0:02:57.3]}
4. Bg2 {[%clk 0:02:57.6]} 4... g6 {[%clk 0:02:57.6]} 5. Nf3 {[%clk 0:02:57]}
5... Bg7 {[%clk 0:02:57.3]} 6. O-O {[%clk 0:02:57.5]} 6... O-O {[%clk
0:02:57.3]} 7. Nc3 {[%clk 0:02:57.9]} 7... Qe8 {[%clk 0:02:56.1]} 8. e4 {[%clk
0:02:45.7]} 8... fxe4 {[%clk 0:02:48.2]} 9. Ng5 {[%clk 0:02:45.1]} 9... c6
{[%clk 0:02:32.8]} 10. d5 {[%clk 0:02:17.6]} 10... cxd5 {[%clk 0:01:52.7]} 11.
cxd5 {[%clk 0:02:18.5]} 11... Na6 {[%clk 0:01:52.3]} 12. Ngxe4 {[%clk
0:02:08.4]} 12... Bf5 {[%clk 0:01:41.3]} 13. Re1 {[%clk 0:01:40.8]} 13... Qd7
{[%clk 0:01:14.6]} 14. a3 {[%clk 0:01:23.7]} 14... Rac8 {[%clk 0:01:09.9]} 15.
Ng5 {[%clk 0:01:17.4]} 15... Ng4 {[%clk 0:00:55.7]} 16. Re2 {[%clk 0:00:53.4]}
16... Nc5 {[%clk 0:00:44]} 17. Bf4 {[%clk 0:00:37.3]} 17... Bd3 {[%clk
0:00:25.7]} 18. Rd2 {[%clk 0:00:32.2]} 18... Bc4 {[%clk 0:00:22.8]} 19. Ne6
{[%clk 0:00:27.9]} 19... Nxe6 {[%clk 0:00:16.6]} 20. dxe6 {[%clk 0:00:28.8]}
20... Bxe6 {[%clk 0:00:16.8]} 21. Nd5 {[%clk 0:00:19]} 21... Be5 {[%clk
0:00:16]} 22. Bxe5 {[%clk 0:00:18]} 22... Nxe5 {[%clk 0:00:16.9]} 23. Qe2 {[%clk
0:00:16]} 23... Rf5 {[%clk 0:00:16.6]} 24. f4 {[%clk 0:00:15.3]} 24... Nc6
{[%clk 0:00:16.2]} 25. Rad1 {[%clk 0:00:14.4]} 25... Rcf8 {[%clk 0:00:16.2]} 26.
Ne3 {[%clk 0:00:13.6]} 26... R5f6 {[%clk 0:00:16]} 27. Nc4 {[%clk 0:00:13.4]}
27... Bxc4 {[%clk 0:00:15.7]} 28. Qxc4+ {[%clk 0:00:12.9]} 28... Kg7 {[%clk
0:00:16.4]} 29. Re2 {[%clk 0:00:12.6]} 29... Qf5 {[%clk 0:00:16]} 30. Bxc6
{[%clk 0:00:08.1]} 30... bxc6 {[%clk 0:00:16.9]} 31. Rxe7+ {[%clk 0:00:07.7]}
31... R8f7 {[%clk 0:00:17.8]} 32. Rxf7+ {[%clk 0:00:07.9]} 32... Rxf7 {[%clk
0:00:18.3]} 33. Qxc6 {[%clk 0:00:08]} 33... Qc5+ {[%clk 0:00:15.1]} 34. Qxc5
{[%clk 0:00:08.1]} 34... dxc5 {[%clk 0:00:16]} 35. Rd2 {[%clk 0:00:08.5]} 35...
Rb7 {[%clk 0:00:16.6]} 36. Kf2 {[%clk 0:00:08.5]} 36... Kf6 {[%clk 0:00:16.8]}
37. Ke3 {[%clk 0:00:08.1]} 37... Ke6 {[%clk 0:00:17.1]} 38. Ke4 {[%clk
0:00:08.4]} 38... Rb3 {[%clk 0:00:16.8]} 39. Rc2 {[%clk 0:00:08.6]} 39... Kd6
{[%clk 0:00:16.2]} 40. g4 {[%clk 0:00:07.1]} 40... Kc6 {[%clk 0:00:16.2]} 41. f5
{[%clk 0:00:07.4]} 41... gxf5+ {[%clk 0:00:15.8]} 42. Kxf5 {[%clk 0:00:08.3]}
42... Kd6 {[%clk 0:00:16.4]} 43. h4 {[%clk 0:00:08.5]} 43... Rf3+ {[%clk
0:00:16.5]} 44. Kg5 {[%clk 0:00:08.4]} 44... Rg3 {[%clk 0:00:16.7]} 45. Kf4
{[%clk 0:00:08]} 45... Rg1 {[%clk 0:00:16.1]} 46. h5 {[%clk 0:00:08.2]} 46...
Kd5 {[%clk 0:00:16.3]} 47. Kg5 {[%clk 0:00:08.4]} 47... Kd4 {[%clk 0:00:16.2]}
48. Rd2+ {[%clk 0:00:07.5]} 48... Ke3 {[%clk 0:00:16.3]} 49. Rc2 {[%clk
0:00:07.7]} 49... Kd4 {[%clk 0:00:15.9]} 50. h6 {[%clk 0:00:06.5]} 50... c4
{[%clk 0:00:15.6]} 51. Rd2+ {[%clk 0:00:06.1]} 51... Ke3 {[%clk 0:00:15.6]} 52.
Rc2 {[%clk 0:00:06.4]} 52... Kd3 {[%clk 0:00:15.6]} 53. Rc3+ {[%clk 0:00:06.6]}
53... Kd4 {[%clk 0:00:16.1]} 54. Rc2 {[%clk 0:00:06.9]} 54... Rg3 {[%clk
0:00:15.7]} 55. Kf4 {[%clk 0:00:06.4]} 55... Rg1 {[%clk 0:00:15.7]} 56. g5
{[%clk 0:00:06.7]} 56... Kd3 {[%clk 0:00:15.3]} 57. Rc3+ {[%clk 0:00:06.5]}
57... Kd4 {[%clk 0:00:15]} 58. Kf5 {[%clk 0:00:06.9]} 58... Rf1+ {[%clk
0:00:14.3]} 59. Ke6 {[%clk 0:00:06.5]} 59... a5 {[%clk 0:00:12.4]} 60. g6 {[%clk
0:00:05.6]} 60... hxg6 {[%clk 0:00:12.7]} 61. Rh3 {[%clk 0:00:04.5]} 61... Rf8
{[%clk 0:00:12.1]} 62. Ke7 {[%clk 0:00:04.7]} 62... Rh8 {[%clk 0:00:12.7]} 63.
Kf7 {[%clk 0:00:05]} 63... c3 {[%clk 0:00:11]} 64. bxc3+ {[%clk 0:00:04.3]}
64... Kc4 {[%clk 0:00:11]} 65. Kg7 {[%clk 0:00:04.7]} 65... Rd8 {[%clk
0:00:10.1]} 66. h7 {[%clk 0:00:04.9]} 66... a4 {[%clk 0:00:09.5]} 67. Kxg6
{[%clk 0:00:05.1]} 67... Kb3 {[%clk 0:00:08.5]} 68. Kf5 {[%clk 0:00:05.1]} 68...
Kxa3 {[%clk 0:00:08.6]} 69. c4+ {[%clk 0:00:05.5]} 69... Kb4 {[%clk 0:00:08.7]}
70. c5 {[%clk 0:00:05.7]} 70... a3 {[%clk 0:00:08.7]} 71. h8=Q {[%clk
0:00:05.4]} 71... Rxh8 {[%clk 0:00:07.8]} 72. Rxh8 {[%clk 0:00:06.3]} 72... a2
{[%clk 0:00:08.4]} 73. Ra8 {[%clk 0:00:05.1]} 73... Kxc5 {[%clk 0:00:07.8]} 74.
Rxa2 {[%clk 0:00:05.1]} 74... Kb4 {[%clk 0:00:07.9]} 75. Re2 {[%clk 0:00:06]}
75... Kb3 {[%clk 0:00:08.8]} 76. Ke4 {[%clk 0:00:06.2]} 76... Kc3 {[%clk
0:00:09.7]} 77. Re3+ {[%clk 0:00:05.7]} 77... Kc4 {[%clk 0:00:09.8]} 78. Rd3
{[%clk 0:00:06.6]} 78... Kb4 {[%clk 0:00:09.9]} 79. Kd4 {[%clk 0:00:06.6]} 79...
Kb5 {[%clk 0:00:10.8]} 80. Rc3 {[%clk 0:00:06.8]} 80... Kb4 {[%clk 0:00:11.1]}
81. Kd3 {[%clk 0:00:07]} 81... Kb5 {[%clk 0:00:12]} 82. Kd4 {[%clk 0:00:06.6]}
82... Kb4 {[%clk 0:00:12.9]} 83. Rc6 {[%clk 0:00:06.7]} 83... Kb5 {[%clk
0:00:13.5]} 84. Rc5+ {[%clk 0:00:06.8]} 84... Kb4 {[%clk 0:00:13.8]} 85. Kd5
{[%clk 0:00:05]} 85... Kb3 {[%clk 0:00:13.8]} 86. Rc4 {[%clk 0:00:05.2]} 86...
Kb2 {[%clk 0:00:14]} 87. Kd4 {[%clk 0:00:05.5]} 87... Kb3 {[%clk 0:00:14.9]} 88.
Kd3 {[%clk 0:00:05.8]} 88... Kb2 {[%clk 0:00:15.2]} 89. Rc3 {[%clk 0:00:06.1]}
89... Kb1 {[%clk 0:00:15.5]} 90. Kd2 {[%clk 0:00:06.1]} 90... Kb2 {[%clk
0:00:16.4]} 91. Kd3 {[%clk 0:00:06.2]} 91... Kb1 {[%clk 0:00:16.4]} 92. Kc4
{[%clk 0:00:06.6]} 92... Kb2 {[%clk 0:00:16.6]} 93. Kb4 {[%clk 0:00:06.9]} 93...
Kb1 {[%clk 0:00:17]} 94. Kb3 {[%clk 0:00:07.1]} 94... Ka1 {[%clk 0:00:16.8]} 95.
Rc1# {[%clk 0:00:07.7]} 1-0

[Event "*** SCC Grand Prix: Titled Tuesday Blitz"]
[Site "Chess.com"]
[Date "2020.06.23"]
[Round "10"]
[White "Michaelson_11"]
[Black "Susal_De_Silva"]
[Result "1/2-1/2"]
[WhiteElo "2101"]
[BlackElo "2378"]
[TimeControl "180+1"]
[EndTime "12:00:59 PDT"]
[Termination "Game drawn by 50-move rule"]

1. e4 {[%clk 0:03:00.9]} 1... e5 {[%clk 0:02:59]} 2. Nf3 {[%clk 0:03:00.9]} 2...
Nc6 {[%clk 0:02:58.6]} 3. Nc3 {[%clk 0:03:01.8]} 3... Nf6 {[%clk 0:02:58.4]} 4.
Bb5 {[%clk 0:03:02.7]} 4... Bb4 {[%clk 0:02:58.4]} 5. O-O {[%clk 0:02:53.4]}
5... O-O {[%clk 0:02:56.8]} 6. d3 {[%clk 0:02:51.7]} 6... d6 {[%clk 0:02:54]} 7.
Bg5 {[%clk 0:02:43.6]} 7... Bxc3 {[%clk 0:02:47.4]} 8. bxc3 {[%clk 0:02:38.7]}
8... h6 {[%clk 0:02:47.7]} 9. Bh4 {[%clk 0:02:36.5]} 9... Bg4 {[%clk 0:02:02.7]}
10. h3 {[%clk 0:02:35.6]} 10... Bh5 {[%clk 0:02:02.4]} 11. g4 {[%clk 0:02:33.4]}
11... Bg6 {[%clk 0:02:00.3]} 12. Bxc6 {[%clk 0:02:28.7]} 12... bxc6 {[%clk
0:01:58.7]} 13. Re1 {[%clk 0:02:24.9]} 13... Re8 {[%clk 0:01:56.8]} 14. Qd2
{[%clk 0:02:10.5]} 14... Qe7 {[%clk 0:01:45.6]} 15. Kg2 {[%clk 0:02:00.1]} 15...
Qe6 {[%clk 0:01:44.6]} 16. g5 {[%clk 0:01:47.5]} 16... Nh5 {[%clk 0:01:42.4]}
17. Bg3 {[%clk 0:01:42]} 17... f5 {[%clk 0:01:37.4]} 18. exf5 {[%clk 0:01:32.2]}
18... Bxf5 {[%clk 0:01:36]} 19. Rh1 {[%clk 0:01:26.1]} 19... e4 {[%clk
0:01:34.9]} 20. Nd4 {[%clk 0:01:14.2]} 20... Qd5 {[%clk 0:01:29.7]} 21. dxe4
{[%clk 0:01:12.7]} 21... Bxe4+ {[%clk 0:01:25.7]} 22. f3 {[%clk 0:01:10.6]}
22... Bxf3+ {[%clk 0:01:18.7]} 23. Nxf3 {[%clk 0:01:06.6]} 23... Qxd2+ {[%clk
0:01:19.6]} 24. Nxd2 {[%clk 0:01:07.5]} 24... Re2+ {[%clk 0:01:20.3]} 25. Kf3
{[%clk 0:01:06.7]} 25... Rxd2 {[%clk 0:01:21.2]} 26. gxh6 {[%clk 0:01:07.2]}
26... Rf8+ {[%clk 0:01:20.1]} 27. Ke3 {[%clk 0:01:06.8]} 27... Rxc2 {[%clk
0:01:18.9]} 28. Kd3 {[%clk 0:00:58.8]} 28... Rg2 {[%clk 0:01:11.4]} 29. Bh4
{[%clk 0:00:43.7]} 29... g5 {[%clk 0:01:04.3]} 30. Rhg1 {[%clk 0:00:32.9]} 30...
Rf3+ {[%clk 0:01:03.1]} 31. Kc4 {[%clk 0:00:24.5]} 31... Rf4+ {[%clk 0:01:04]}
32. Kb3 {[%clk 0:00:25.4]} 32... Rxg1 {[%clk 0:01:02.2]} 33. Rxg1 {[%clk
0:00:24.3]} 33... Rxh4 {[%clk 0:01:02.4]} 34. Rxg5+ {[%clk 0:00:24.9]} 34... Kh7
{[%clk 0:01:00.7]} 35. Ra5 {[%clk 0:00:25]} 35... Nf6 {[%clk 0:00:34.8]} 36.
Rxa7 {[%clk 0:00:20.4]} 36... Nd5 {[%clk 0:00:33.8]} 37. c4 {[%clk 0:00:15.1]}
37... Rxh3+ {[%clk 0:00:33.5]} 38. Kb2 {[%clk 0:00:15.2]} 38... Ne7 {[%clk
0:00:20.5]} 39. Rxc7 {[%clk 0:00:14]} 39... Re3 {[%clk 0:00:21]} 40. a4 {[%clk
0:00:13.1]} 40... Kxh6 {[%clk 0:00:21.5]} 41. a5 {[%clk 0:00:13.5]} 41... Re2+
{[%clk 0:00:18.4]} 42. Kb3 {[%clk 0:00:13.8]} 42... Re3+ {[%clk 0:00:18.3]} 43.
Kb2 {[%clk 0:00:12.6]} 43... Nf5 {[%clk 0:00:16.2]} 44. Rxc6 {[%clk 0:00:10.8]}
44... Re7 {[%clk 0:00:15.7]} 45. Kc3 {[%clk 0:00:09.3]} 45... Kg5 {[%clk
0:00:15.3]} 46. a6 {[%clk 0:00:08.5]} 46... Kf4 {[%clk 0:00:13.3]} 47. c5 {[%clk
0:00:08.8]} 47... d5 {[%clk 0:00:12.6]} 48. Kb4 {[%clk 0:00:07.5]} 48... d4
{[%clk 0:00:12.3]} 49. Kc4 {[%clk 0:00:07.8]} 49... Rd7 {[%clk 0:00:10.7]} 50.
Rb6 {[%clk 0:00:06.4]} 50... d3 {[%clk 0:00:10.4]} 51. Rb7 {[%clk 0:00:06.8]}
51... Rd8 {[%clk 0:00:09.9]} 52. a7 {[%clk 0:00:05.7]} 52... d2 {[%clk
0:00:10.2]} 53. Rb1 {[%clk 0:00:04.3]} 53... Ne3+ {[%clk 0:00:09.3]} 54. Kb5
{[%clk 0:00:04.7]} 54... d1=Q {[%clk 0:00:08.9]} 55. Rxd1 {[%clk 0:00:05.2]}
55... Nxd1 {[%clk 0:00:09.7]} 56. Kb6 {[%clk 0:00:04.8]} 56... Ke5 {[%clk
0:00:10]} 57. Kb7 {[%clk 0:00:04.7]} 57... Rd7+ {[%clk 0:00:09.9]} 58. Kb8
{[%clk 0:00:05.1]} 58... Nc3 {[%clk 0:00:08.8]} 59. a8=Q {[%clk 0:00:05.1]}
59... Rd8+ {[%clk 0:00:08.9]} 60. Kb7 {[%clk 0:00:04.6]} 60... Rd5 {[%clk
0:00:08.5]} 61. Qe8+ {[%clk 0:00:04.1]} 61... Kd4 {[%clk 0:00:08.6]} 62. c6
{[%clk 0:00:03.7]} 62... Ne4 {[%clk 0:00:07.6]} 63. Qh8+ {[%clk 0:00:02.8]}
63... Kc4 {[%clk 0:00:07.2]} 64. c7 {[%clk 0:00:03.7]} 64... Rb5+ {[%clk
0:00:07.1]} 65. Kc6 {[%clk 0:00:03.6]} 65... Rc5+ {[%clk 0:00:06.9]} 66. Kd7
{[%clk 0:00:03.7]} 66... Rd5+ {[%clk 0:00:06.3]} 67. Ke6 {[%clk 0:00:04.1]}
67... Nc5+ {[%clk 0:00:05.4]} 68. Kf6 {[%clk 0:00:03.7]} 68... Rd6+ {[%clk
0:00:05.4]} 69. Ke7 {[%clk 0:00:03.8]} 69... Rd7+ {[%clk 0:00:05.5]} 70. Kf6
{[%clk 0:00:04.1]} 70... Rxc7 {[%clk 0:00:06.4]} 71. Qh4+ {[%clk 0:00:04.3]}
71... Kb5 {[%clk 0:00:06.7]} 72. Qh3 {[%clk 0:00:04.4]} 72... Rc6+ {[%clk
0:00:07]} 73. Kf7 {[%clk 0:00:04.5]} 73... Kb6 {[%clk 0:00:07.9]} 74. Qg3 {[%clk
0:00:03.5]} 74... Re6 {[%clk 0:00:06]} 75. Kg7 {[%clk 0:00:03.4]} 75... Rc6
{[%clk 0:00:06.3]} 76. Kf7 {[%clk 0:00:03.5]} 76... Nd7 {[%clk 0:00:06.2]} 77.
Ke7 {[%clk 0:00:03.1]} 77... Nc5 {[%clk 0:00:06.1]} 78. Qg2 {[%clk 0:00:02.5]}
78... Kb5 {[%clk 0:00:06.4]} 79. Kf7 {[%clk 0:00:02.6]} 79... Rb6 {[%clk
0:00:06.4]} 80. Qf1+ {[%clk 0:00:02.9]} 80... Kc6 {[%clk 0:00:06.3]} 81. Kg6
{[%clk 0:00:03.2]} 81... Kd5+ {[%clk 0:00:06]} 82. Kg5 {[%clk 0:00:03.5]} 82...
Re6 {[%clk 0:00:06.6]} 83. Qd1+ {[%clk 0:00:03]} 83... Kc6 {[%clk 0:00:06.5]}
84. Kf4 {[%clk 0:00:03.4]} 84... Rf6+ {[%clk 0:00:06.2]} 85. Ke5 {[%clk
0:00:03.3]} 85... Re6+ {[%clk 0:00:06.5]} 86. Kf4 {[%clk 0:00:03.7]} 86... Rd6
{[%clk 0:00:07.1]} 87. Qc1 {[%clk 0:00:03.2]} 87... Rd4+ {[%clk 0:00:06.9]} 88.
Kf3 {[%clk 0:00:03.4]} 88... Rd3+ {[%clk 0:00:06.8]} 89. Kf2 {[%clk 0:00:03.3]}
89... Kd5 {[%clk 0:00:07.1]} 90. Ke2 {[%clk 0:00:03.6]} 90... Rd4 {[%clk
0:00:07.3]} 91. Qg5+ {[%clk 0:00:03.3]} 91... Kc4 {[%clk 0:00:07.9]} 92. Qc1+
{[%clk 0:00:03.3]} 92... Kb4 {[%clk 0:00:08.3]} 93. Qb1+ {[%clk 0:00:03.5]}
93... Nb3 {[%clk 0:00:08.8]} 94. Ke3 {[%clk 0:00:03.3]} 94... Rc4 {[%clk
0:00:09.3]} 95. Kf3 {[%clk 0:00:03.3]} 95... Rc3+ {[%clk 0:00:09.6]} 96. Kg2
{[%clk 0:00:03]} 96... Rc5 {[%clk 0:00:10.2]} 97. Qe4+ {[%clk 0:00:02.9]} 97...
Rc4 {[%clk 0:00:10.3]} 98. Qb7+ {[%clk 0:00:03]} 98... Kc3 {[%clk 0:00:10.2]}
99. Kf2 {[%clk 0:00:03.3]} 99... Nd4 {[%clk 0:00:10.5]} 100. Ke3 {[%clk
0:00:03.1]} 100... Nc2+ {[%clk 0:00:10.1]} 101. Ke2 {[%clk 0:00:03.2]} 101...
Rb4 {[%clk 0:00:10.3]} 102. Qc7+ {[%clk 0:00:03.2]} 102... Rc4 {[%clk
0:00:09.9]} 103. Qg7+ {[%clk 0:00:02.9]} 103... Kb3 {[%clk 0:00:10.1]} 104. Kd2
{[%clk 0:00:03.3]} 104... Nb4 {[%clk 0:00:10.3]} 105. Qg3+ {[%clk 0:00:03.3]}
105... Ka4 {[%clk 0:00:10.2]} 106. Qe5 {[%clk 0:00:03.3]} 106... Rc2+ {[%clk
0:00:09.8]} 107. Kd1 {[%clk 0:00:03.3]} 107... Ra2 {[%clk 0:00:09.7]} 108. Qe7
{[%clk 0:00:03.4]} 108... Kb3 {[%clk 0:00:09.8]} 109. Qe8 {[%clk 0:00:03.8]}
109... Nd3 {[%clk 0:00:09.4]} 110. Qb8+ {[%clk 0:00:03.6]} 110... Kc3 {[%clk
0:00:09.5]} 111. Qc7+ {[%clk 0:00:04]} 111... Kb3 {[%clk 0:00:09.7]} 112. Qd6
{[%clk 0:00:04.1]} 112... Nb4 {[%clk 0:00:08.2]} 113. Qe6+ {[%clk 0:00:04.2]}
113... Ka3 {[%clk 0:00:08.2]} 114. Ke1 {[%clk 0:00:04.6]} 114... Rb2 {[%clk
0:00:07.6]} 115. Kf1 {[%clk 0:00:04.9]} 115... Nd3 {[%clk 0:00:07.6]} 116. Qe3
{[%clk 0:00:04.1]} 116... Rb3 {[%clk 0:00:07.9]} 117. Kg1 {[%clk 0:00:04.2]}
117... Nb4 {[%clk 0:00:08.1]} 118. Qa7+ {[%clk 0:00:03.3]} 118... Kb2 {[%clk
0:00:08.1]} 119. Qf2+ {[%clk 0:00:04.2]} 119... Nc2 {[%clk 0:00:07.6]} 120. Qf6+
{[%clk 0:00:03.7]} 120... Rc3 {[%clk 0:00:07.3]} 1/2-1/2